bitfinex/quotes_SOLUSD_20240614
["timestamp","ask_amount","ask_price","bid_price","bid_amount"]
[1718392420482,2.6182,141.32,141.29,7.8558]
[1718392420805,7.8545,141.32,141.29,2.6185]
[1718392421012,2.6183,141.31,141.28,26.1874]
[1718392421306,2.6183,141.31,141.28,7.8562]
[1718392421524,42.6309,141.33,141.29,15.7121]
[1718392421677,40.0128,141.33,141.29,13.0935]
[1718392421883,42.6309,141.33,141.29,26.1869]
[1718392422079,16.4502,141.33,141.3,5.2369]
[1718392422283,5.63764543,141.35,141.32,2.6181]
[1718392422284,2.6176,141.35,141.32,2.6181]
[1718392422586,7.8528,141.35,141.32,2.618]
[1718392422789,23.0025,141.36,141.33,2.6179]
[1718392422985,2.6176,141.35,141.32,2.618]
[1718392423186,7.8528,141.35,141.31,7.8546]
[1718392423599,7.8528,141.35,141.32,2.6181]
[1718392423600,2.6176,141.35,141.32,2.6181]
[1718392423782,2.6176,141.35,141.32,2.618]
[1718392423982,2.6176,141.35,141.31,15.7097]
[1718392424198,2.6178,141.34,141.31,2.6182]
[1718392424412,26.1762,141.35,141.31,2.6182]
[1718392424782,2.6177,141.35,141.31,15.7098]
[1718392424988,2.6177,141.35,141.31,7.8548]
[1718392425210,17.7674,141.36,141.32,15.7084]
[1718392425417,15.15,141.36,141.33,2.6179]
[1718392425991,15.15,141.36,141.32,23.5623]
[1718392425992,17.7674,141.36,141.32,26.1803]
[1718392426189,15.15,141.36,141.33,2.6179]
[1718392426385,2.6176,141.35,141.31,26.1826]
[1718392426588,23.0024,141.36,141.32,7.8543]
[1718392426916,15.15,141.36,141.3,0.51]
[1718392427098,29.9176,141.37,141.32,15.7085]
[1718392427295,2.6174,141.36,141.32,26.1806]
[1718392427494,14.214,141.37,141.33,2.6179]
[1718392427793,6.3621,141.37,141.34,5.2355]
[1718392428010,15.9744,141.39,141.36,2.6173]
[1718392428213,32.8058,141.41,141.36,5.2347]
[1718392428393,2.6167,141.4,141.36,7.852]
[1718392428710,2.6168,141.39,141.35,15.7051]
[1718392428908,7.8503,141.4,141.36,7.8522]
[1718392429216,23.5493,141.41,141.36,13.0869]
[1718392429542,5.2327,141.42,141.35,0.17]
[1718392429696,2.6165,141.41,141.37,26.172]
[1718392430088,7.85,141.4,141.35,19.0026]
[1718392430404,2.6169,141.39,141.35,16.3851]
[1718392430612,2.6169,141.39,141.35,24.238]
[1718392430798,15.9744,141.43,141.34,2.6177]
[1718392431110,26.1708,141.38,141.34,2.6177]
[1718392431417,2.6172,141.37,141.34,2.6177]
[1718392431599,23.5538,141.38,141.34,2.6177]
[1718392431600,26.1711,141.38,141.34,2.6177]
[1718392431802,7.8515,141.38,141.34,7.8532]
[1718392432002,7.8502,141.4,141.36,7.8521]
[1718392432507,7.8501,141.4,141.36,7.8521]
[1718392432690,15.9744,141.43,141.38,7.8507]
[1718392432886,2.6163,141.42,141.38,7.8508]
[1718392433107,2.6163,141.42,141.38,15.7018]
[1718392433308,2.6163,141.42,141.39,2.6168]
[1718392433605,2.6163,141.42,141.38,13.0849]
[1718392433606,2.6163,141.42,141.38,23.553]
[1718392433792,2.6163,141.42,141.38,26.1699]
[1718392434003,2.6165,141.41,141.37,26.3415]
[1718392434329,15.9744,141.43,141.36,2.6172]
[1718392434330,26.167,141.4,141.36,2.6172]
[1718392434499,23.5502,141.4,141.36,2.6172]
[1718392434693,26.167,141.4,141.36,7.852]
[1718392435197,7.8501,141.4,141.36,7.852]
[1718392435398,2.6168,141.4,141.36,15.7042]
[1718392435721,7.8501,141.4,141.36,15.7042]
[1718392436426,2.6168,141.4,141.36,15.7042]
[1718392437025,23.5494,141.41,141.37,2.6171]
[1718392437227,2.6166,141.4,141.37,2.6171]
[1718392437526,23.5494,141.41,141.37,2.6171]
[1718392437698,26.166,141.41,141.37,2.6171]
[1718392437896,2.6167,141.4,141.37,2.6171]
[1718392438097,26.166,141.41,141.37,2.6171]
[1718392438626,2.6167,141.4,141.36,23.5563]
[1718392438927,2.6167,141.4,141.37,2.6172]
[1718392439103,26.166,141.41,141.37,2.6172]
[1718392439297,7.8498,141.41,141.37,7.8516]
[1718392440024,2.6166,141.41,141.37,15.7033]
[1718392440201,2.6166,141.4,141.36,2.6172]
[1718392440524,2.6181,141.33,141.29,7.8559]
[1718392440714,5.2358,141.34,141.29,18.3305]
[1718392440898,2.618,141.33,141.29,26.1861]
[1718392441100,2.6182,141.32,141.28,18.3315]
[1718392441302,2.6183,141.31,141.27,13.0949]
[1718392441519,2.6183,141.31,141.27,2.619]
[1718392441520,15.7101,141.31,141.27,2.619]
[1718392441703,15.71,141.31,141.27,2.619]
[1718392441913,7.855,141.31,141.27,7.8571]
[1718392442534,2.6183,141.31,141.27,23.5716]
[1718392442707,23.5624,141.33,141.29,2.6186]
[1718392442906,2.6179,141.33,141.29,5.2373]
[1718392443134,2.6179,141.33,141.29,26.1868]
[1718392443640,7.8539,141.33,141.29,7.8558]
[1718392443835,7.8545,141.32,141.28,7.8562]
[1718392444019,15.709,141.32,141.28,7.8562]
[1718392444208,7.8545,141.32,141.28,15.7129]
[1718392444536,2.6182,141.32,141.28,15.7129]
[1718392444714,2.6182,141.32,141.29,2.6187]
[1718392444917,7.8545,141.32,141.28,7.8562]
[1718392445217,2.6183,141.31,141.27,26.1896]
[1718392445421,25.3,141.35,141.24,22.0984]
[1718392445422,26.1804,141.33,141.29,2.6186]
[1718392446124,16.0465,141.38,141.25,21.22]
[1718392446336,16.0465,141.38,141.3,2.6185]
[1718392446529,23.5588,141.35,141.3,2.6185]
[1718392446739,23.5588,141.35,141.3,7.8555]
[1718392446740,26.1765,141.35,141.3,7.8555]
[1718392446913,2.6178,141.34,141.3,7.8555]
[1718392447532,2.6178,141.34,141.3,2.6185]
[1718392447733,2.6178,141.34,141.26,0.34]
[1718392447734,2.6181,141.33,141.28,23.5695]
[1718392447908,13.0904,141.33,141.28,7.8563]
[1718392448107,25.3,141.36,141.26,0.17]
[1718392448108,26.1785,141.34,141.29,23.5683]
[1718392448342,7.8537,141.34,141.3,2.6184]
[1718392448727,2.6179,141.34,141.3,2.6184]
[1718392449149,15.7069,141.34,141.29,26.1868]
[1718392449448,15.7069,141.34,141.29,2.6185]
[1718392449449,2.618,141.33,141.29,2.6185]
[1718392449627,15.7079,141.33,141.28,26.188]
[1718392449944,7.8544,141.32,141.28,2.6187]
[1718392450244,7.8544,141.32,141.25,7.8581]
[1718392450245,7.8558,141.3,141.25,7.8581]
[1718392450418,2.619,141.28,141.24,2.6194]
[1718392450614,2.6189,141.28,141.24,15.7175]
[1718392450823,32.46074072,141.3,141.2,21.7203]
[1718392451035,2.6191,141.27,141.23,7.8591]
[1718392451543,23.5708,141.28,141.23,2.6197]
[1718392451742,7.8574,141.27,141.22,23.5791]
[1718392451948,2.6191,141.27,141.23,7.8593]
[1718392452119,2.6189,141.28,141.24,2.6196]
[1718392452316,2.6189,141.28,141.24,7.8589]
[1718392452519,7.8567,141.28,141.24,2.6196]
[1718392452727,2.6189,141.28,141.24,2.6195]
[1718392452948,7.8568,141.28,141.24,2.6195]
[1718392453249,15.7135,141.28,141.23,26.1975]
[1718392453453,2.6191,141.27,141.23,7.8591]
[1718392454925,0.17,141.29,141.2,29.581]
[1718392455124,15.7158,141.26,141.21,23.5812]
[1718392455332,7.8584,141.25,141.21,2.6201]
[1718392455545,18.3353,141.26,141.22,2.62]
[1718392455728,2.6193,141.26,141.22,15.7199]
[1718392456044,2.6193,141.26,141.22,7.8599]
[1718392456248,23.5727,141.27,141.19,5.241]
[1718392456249,5.2394,141.24,141.19,5.241]
[1718392456450,7.8591,141.24,141.2,2.6203]
[1718392456653,7.8596,141.23,141.19,2.6204]
[1718392457150,2.6199,141.23,141.19,2.6204]
[1718392457456,10.4786,141.24,141.2,2.6203]
[1718392457457,2.6196,141.24,141.2,2.6203]
[1718392457657,23.5757,141.25,141.2,2.6203]
[1718392457969,23.5757,141.25,141.19,23.5842]
[1718392457970,2.6196,141.24,141.19,23.5842]
[1718392458128,15.7168,141.25,141.2,7.861]
[1718392458323,2.6195,141.25,141.2,23.5832]
[1718392458525,2.6195,141.25,141.2,26.2034]
[1718392458728,7.8584,141.25,141.2,7.8608]
[1718392458940,7.8584,141.25,141.2,15.7219]
[1718392459147,7.8584,141.25,141.2,7.8608]
[1718392459726,15.7168,141.25,141.2,7.8608]
[1718392459949,26.1946,141.25,141.2,2.6202]
[1718392460246,2.6196,141.24,141.2,2.6202]
[1718392460652,15.7993,141.26,141.18,0.17]
[1718392460862,15.7993,141.26,141.22,2.6199]
[1718392461027,15.7993,141.26,141.22,26.1998]
[1718392461227,9.77687585,141.28,141.24,2.6196]
[1718392461448,22.87137585,141.28,141.23,7.8591]
[1718392461758,2.6191,141.27,141.23,2.6196]
[1718392462127,2.6191,141.27,141.22,26.1989]
[1718392462327,7.15797585,141.28,141.24,7.8588]
[1718392462633,7.15797585,141.28,141.21,10.4805]
[1718392462634,7.8577,141.26,141.21,10.4805]
[1718392462837,2.6192,141.26,141.21,23.5816]
[1718392463051,2.6192,141.26,141.22,2.6199]
[1718392463555,2.6192,141.26,141.21,15.7209]
[1718392463762,2.6192,141.26,141.21,26.2017]
[1718392463933,2.6195,141.25,141.2,23.5825]
[1718392464137,2.6195,141.25,141.21,2.6201]
[1718392464569,7.858,141.26,141.21,15.7211]
[1718392464860,7.858,141.26,141.21,7.8605]
[1718392465037,7.858,141.26,141.21,15.7211]
[1718392465240,15.7159,141.26,141.21,7.8605]
[1718392465438,26.1932,141.26,141.21,2.6201]
[1718392465753,2.6194,141.26,141.21,23.5814]
[1718392465961,2.6192,141.27,141.22,18.3398]
[1718392466271,33.34797585,141.28,141.23,2.6198]
[1718392466439,23.5719,141.27,141.22,2.6198]
[1718392466756,2.6193,141.26,141.22,2.62]
[1718392467336,2.6192,141.27,141.23,2.6198]
[1718392468453,2.6192,141.27,141.22,26.1998]
[1718392468653,7.8574,141.27,141.22,26.1998]
[1718392469361,2.6192,141.27,141.23,2.6198]
[1718392469590,9.77687585,141.28,141.24,2.6195]
[1718392469738,26.188,141.29,141.24,2.6195]
[1718392469935,7.8564,141.29,141.24,7.8587]
[1718392470136,2.6188,141.29,141.24,7.8587]
[1718392470568,7.8562,141.29,141.24,2.6195]
[1718392471077,2.6189,141.28,141.23,7.8591]
[1718392471244,15.7134,141.28,141.22,26.199]
[1718392471567,26.1891,141.28,141.23,2.6198]
[1718392471743,26.1891,141.28,141.22,26.199]
[1718392471944,26.1891,141.28,141.23,2.6198]
[1718392472171,23.5695,141.29,141.23,15.7187]
[1718392472372,26.1883,141.29,141.23,15.7187]
[1718392472666,7.8581,141.26,141.2,23.5829]
[1718392472867,2.6193,141.26,141.21,7.8605]
[1718392473057,2.6193,141.26,141.21,15.7211]
[1718392473261,2.6193,141.26,141.21,7.8605]
[1718392474251,2.6194,141.25,141.2,26.2025]
[1718392474443,15.7156,141.26,141.2,26.2025]
[1718392474645,7.8578,141.26,141.21,2.6202]
[1718392474973,2.6193,141.26,141.2,18.3418]
[1718392475139,25.3,141.27,141.17,6.2333]
[1718392475340,25.3,141.27,141.18,26.2071]
[1718392475341,23.5778,141.24,141.18,26.2071]
[1718392475568,23.5778,141.24,141.18,7.862]
[1718392475879,10.4791,141.24,141.16,16.0695]
[1718392476078,16.6617,141.24,141.15,18.3485]
[1718392476368,0.34,141.23,141.16,7.8633]
[1718392476583,13.1001,141.22,141.16,26.2101]
[1718392476752,2.6202,141.21,141.16,2.6209]
[1718392476941,26.2023,141.21,141.15,26.2122]
[1718392477145,18.3421,141.21,141.13,16.2753962]
[1718392477341,7.8608,141.21,141.16,2.6211]
[1718392477542,23.5811,141.22,141.16,23.59]
[1718392477774,2.6202,141.21,141.16,23.59]
[1718392477945,2.6202,141.21,141.16,26.2109]
[1718392478145,26.2012,141.22,141.16,26.2109]
[1718392478471,26.5393,141.23,141.17,15.7254]
[1718392478677,2.9598,141.23,141.18,7.8619]
[1718392479054,44.5814,141.24,141.19,7.8615]
[1718392479256,49.8207,141.24,141.19,2.6205]
[1718392479573,19.2814,141.24,141.19,7.8616]
[1718392479753,19.2814,141.24,141.19,2.6205]
[1718392479754,32.3796,141.24,141.19,2.6205]
[1718392480067,24.5207,141.24,141.19,2.6205]
[1718392480260,7.158899,141.23,141.18,23.5864]
[1718392480946,9.778699,141.23,141.18,26.207]
[1718392481167,7.158899,141.23,141.2,13.1017]
[1718392481373,7.158899,141.23,141.19,23.5844]
[1718392481574,7.158899,141.23,141.19,7.8613]
[1718392481875,7.158899,141.23,141.2,2.6203]
[1718392482173,16.6617,141.24,141.2,7.861]
[1718392482469,16.6617,141.24,141.2,2.6203]
[1718392482670,16.6617,141.24,141.19,23.5845]
[1718392482860,19.2813,141.24,141.19,26.2049]
[1718392483060,16.6617,141.24,141.2,2.6203]
[1718392483265,16.6617,141.24,141.19,26.2049]
[1718392483454,19.2813,141.24,141.19,26.2049]
[1718392483660,32.3795,141.24,141.19,2.6204]
[1718392483864,15.7192,141.23,141.18,2.6206]
[1718392484167,15.7192,141.23,141.17,10.4837]
[1718392484168,2.6202,141.22,141.17,10.4837]
[1718392484374,2.62,141.22,141.17,26.209]
[1718392484550,51.4993,141.23,141.18,2.6207]
[1718392484872,33.1596,141.23,141.18,2.6207]
[1718392485662,51.4984,141.23,141.18,2.6207]
[1718392486070,51.4984,141.23,141.17,26.2088]
[1718392486071,2.62,141.22,141.17,26.2088]
[1718392486376,7.86,141.22,141.17,7.8623]
[1718392486873,2.62,141.22,141.17,7.8623]
[1718392487380,2.62,141.22,141.17,15.7254]
[1718392487881,2.62,141.22,141.17,7.8626]
[1718392488063,2.62,141.22,141.17,15.7254]
[1718392488773,2.62,141.22,141.17,26.2091]
[1718392489087,2.62,141.22,141.17,7.8626]
[1718392489088,7.86,141.22,141.17,7.8626]
[1718392489283,2.6204,141.2,141.15,7.8636]
[1718392489458,2.6204,141.2,141.15,15.7275]
[1718392489653,26.2031,141.21,141.16,2.6211]
[1718392489869,2.6203,141.2,141.15,26.2126]
[1718392490077,7.861,141.21,141.16,7.8633]
[1718392490274,2.6203,141.21,141.16,7.8633]
[1718392490575,15.7213,141.21,141.16,2.6211]
[1718392491178,26.2012,141.22,141.17,2.6209]
[1718392491552,2.6202,141.21,141.16,26.2108]
[1718392491882,2.6202,141.21,141.16,15.7264]
[1718392492110,15.7201,141.22,141.17,2.6208]
[1718392492652,7.13485983,141.21,141.17,7.8626]
[1718392493275,7.13485983,141.21,141.17,15.7253]
[1718392493479,7.13485983,141.21,141.18,2.6207]
[1718392493681,25.3,141.23,141.19,20.9642]
[1718392493884,7.13648313,141.22,141.2,2.6202]
[1718392494063,16.6617,141.24,141.2,2.6202]
[1718392494382,16.6617,141.24,141.13,58.7853962]
[1718392494383,25.3,141.21,141.13,16.2753962]
[1718392494583,2.6208,141.18,141.13,2.8273962]
[1718392494756,2.6208,141.18,141.13,8.0706962]
[1718392495383,43.6419,141.21,141.13,0.2058962]
[1718392495680,33.1609,141.21,141.16,2.621]
[1718392495893,33.1609,141.21,141.15,26.2127]
[1718392495894,41.0215,141.21,141.15,26.2127]
[1718392496088,2.6204,141.2,141.15,26.2127]
[1718392496293,13.102,141.2,141.14,26.214]
[1718392496469,26.2041,141.2,141.14,26.214]
[1718392496894,51.5031,141.21,141.15,15.7277]
[1718392497100,25.3,141.21,141.15,18.349]
[1718392497288,2.6204,141.2,141.15,7.8635]
[1718392498098,27.9202,141.21,141.16,7.8632]
[1718392498393,25.3,141.21,141.17,7.8627]
[1718392498697,25.3,141.21,141.17,2.6209]
[1718392498885,7.13640246,141.22,141.17,7.8628]
[1718392499083,19.2813,141.24,141.19,2.6204]
[1718392499390,26.4179696,141.24,141.19,7.8615]
[1718392499583,26.4179696,141.24,141.16,2.621]
[1718392499584,7.8606,141.21,141.16,2.621]
[1718392499793,2.6202,141.21,141.16,7.8631]
[1718392499970,2.6202,141.21,141.16,2.621]
[1718392500171,7.8612,141.2,141.15,2.6212]
[1718392500409,7.8618,141.19,141.14,2.6214]
[1718392500612,18.3431,141.2,141.14,2.6214]
[1718392500613,2.6204,141.2,141.15,7.8637]
[1718392500776,2.6202,141.21,141.16,2.6211]
[1718392500973,7.8607,141.21,141.15,23.5909]
[1718392501175,2.6202,141.21,141.16,7.8632]
[1718392501370,48.881,141.22,141.13,0.2058962]
[1718392501371,10.4821,141.2,141.13,18.5565962]
[1718392501571,7.8618,141.19,141.14,2.6214]
[1718392502101,27.9207,141.19,141.13,0.2058962]
[1718392502295,48.8854,141.19,141.13,8.0705962]
[1718392502500,5.2401,141.22,141.16,5.2421]
[1718392502797,51.5005,141.22,141.17,2.6209]
[1718392503001,27.9201,141.22,141.17,2.6209]
[1718392503203,26.2043,141.2,141.14,18.3499]
[1718392503389,2.6206,141.19,141.14,5.2428]
[1718392503589,2.6206,141.19,141.14,7.8642]
[1718392503792,7.8614,141.2,141.15,2.6212]
[1718392504008,15.7226,141.2,141.14,23.5931]
[1718392504298,2.6198,141.23,141.18,5.2413]
[1718392504637,2.6198,141.23,141.18,23.5865]
[1718392504905,23.7983696,141.24,141.14,2.6214]
[1718392505084,2.6206,141.19,141.14,7.8643]
[1718392505278,7.8619,141.19,141.14,2.6214]
[1718392505524,7.8614,141.2,141.14,23.5933]
[1718392505807,27.9205,141.2,141.15,7.8638]
[1718392506006,25.3,141.2,141.15,15.7276]
[1718392506211,2.6206,141.19,141.14,2.6213]
[1718392506427,2.6208,141.18,141.13,8.0707962]
[1718392507181,25.3,141.2,141.13,0.2058962]
[1718392507506,25.3,141.17,141.13,0.2058962]
[1718392507713,18.3489,141.16,141.13,0.2058962]
[1718392507882,7.8636,141.16,141.13,0.2058962]
[1718392508223,21.2278,141.18,141.13,0.2058962]
[1718392508429,0.33333334,141.15,141.13,0.2058962]
[1718392508637,2.95463334,141.15,141.13,0.2058962]
[1718392508818,0.33333334,141.15,141.13,0.2058962]
[1718392509791,7.46041385,141.15,141.13,0.2058962]
[1718392510811,7.46041385,141.15,141.13,2.8274962]
[1718392510994,0.33333334,141.15,141.13,2.8274962]
[1718392511316,0.33333334,141.15,141.13,0.2058962]
[1718392512112,0.33333334,141.15,141.14,10.486]
[1718392512315,0.33333334,141.15,141.14,26.385]
[1718392512527,0.33333334,141.15,141.14,26.895]
[1718392512843,100.0,141.3,141.22,2.62]
[1718392512844,7.12122277,141.23,141.22,2.62]
[1718392513117,15.5849,141.3,141.21,0.17]
[1718392513289,15.5849,141.3,141.25,7.858]
[1718392513491,22.69988789,141.3,141.26,7.8576]
[1718392513913,22.69988789,141.3,141.26,2.6192]
[1718392514187,7.11498789,141.3,141.27,2.619]
[1718392514414,2.6182,141.32,141.27,7.857]
[1718392514415,2.6181,141.32,141.27,7.857]
[1718392514602,18.3293,141.31,141.24,20.9564]
[1718392514823,2.6185,141.3,141.25,2.6193]
[1718392515025,23.5661,141.31,141.25,7.8582]
[1718392515330,2.6184,141.31,141.25,18.336]
[1718392515532,7.8551,141.31,141.26,2.6192]
[1718392515716,2.6184,141.31,141.26,7.8577]
[1718392515921,7.8551,141.31,141.26,2.6192]
[1718392516123,13.0949,141.28,141.22,2.6199]
[1718392516306,23.5723,141.27,141.21,7.8603]
[1718392516512,10.4767,141.27,141.2,23.5832]
[1718392516838,51.4876,141.29,141.23,7.8592]
[1718392517134,51.4876,141.29,141.23,7.8591]
[1718392517135,2.6189,141.28,141.23,7.8591]
[1718392517634,48.8688,141.29,141.21,5.2402]
[1718392517635,23.572,141.27,141.21,5.2402]
[1718392517840,23.572,141.27,141.21,7.8602]
[1718392518009,25.3,141.29,141.19,6.492]
[1718392518221,2.6202,141.21,141.16,2.621]
[1718392518520,23.5807,141.22,141.13,0.2058962]
[1718392518521,23.5838,141.2,141.13,0.2058962]
[1718392518833,33.1619,141.19,141.14,2.6214]
[1718392519140,38.403,141.19,141.13,26.4222962]
[1718392519315,13.1039,141.18,141.13,0.2058962]
[1718392519510,23.587,141.18,141.13,0.2058962]
[1718392519735,51.5064,141.19,141.13,15.9357962]
[1718392519942,27.9207,141.19,141.14,2.6215]
[1718392520144,15.311,141.24,141.13,0.2058962]
[1718392520352,34.002,141.28,141.23,2.6197]
[1718392520513,15.7242,141.3,141.26,7.8576]
[1718392520720,2.6191,141.27,141.22,2.6199]
[1718392521234,106.3604,141.32,141.23,15.7187]
[1718392521235,5.2374,141.29,141.23,15.7187]
[1718392521538,5.2374,141.29,141.19,0.17]
[1718392521718,5.2374,141.29,141.19,0.68]
[1718392522436,15.7124,141.29,141.22,7.86]
[1718392522611,7.8562,141.29,141.23,23.5783]
[1718392522811,7.8562,141.29,141.24,2.6196]
[1718392523032,2.6189,141.28,141.23,7.8591]
[1718392523617,5.2383,141.27,141.21,15.7208]
[1718392523827,23.5736,141.26,141.2,5.2406]
[1718392524035,7.8579,141.26,141.21,2.6201]
[1718392524346,100.34,141.31,141.16,79.4763]
[1718392524347,23.5693,141.29,141.16,79.4763]
[1718392524522,5.2377,141.29,141.16,79.4763]
[1718392524852,7.8565,141.29,141.24,2.6196]
[1718392525051,7.09923577,141.28,141.21,48.8205]
[1718392525256,7.09923577,141.28,141.27,26.1905]
[1718392525545,18.3305,141.37,141.33,7.8537]
[1718392525721,2.6169,141.39,141.34,7.8531]
[1718392525915,15.7013,141.39,141.33,26.1785]
[1718392526115,15.7013,141.39,141.33,7.8537]
[1718392526116,13.0847,141.39,141.33,7.8537]
[1718392526415,26.1694,141.39,141.34,2.6177]
[1718392526845,7.8512,141.38,141.33,7.8537]
[1718392527023,2.6175,141.36,141.31,2.6182]
[1718392527226,2.6178,141.34,141.29,15.7119]
[1718392527426,7.8514,141.38,141.33,2.6178]
[1718392527747,5.2339,141.39,141.33,23.5614]
[1718392527926,55.11244444,141.4,141.34,5.2354]
[1718392528119,9.71104444,141.4,141.35,2.6175]
[1718392528323,2.6171,141.38,141.33,2.6179]
[1718392528523,7.8512,141.38,141.33,2.6179]
[1718392528744,23.5528,141.39,141.33,15.7077]
[1718392528933,7.8508,141.39,141.34,2.6177]
[1718392529250,2.6171,141.38,141.33,7.8537]
[1718392530053,2.6171,141.38,141.33,15.7076]
[1718392530244,2.6172,141.37,141.32,2.618]
[1718392530454,2.6172,141.37,141.31,13.0915]
[1718392530455,23.5558,141.37,141.31,13.0915]
[1718392530747,13.0873,141.36,141.3,7.8552]
[1718392530951,7.8525,141.36,141.31,2.6183]
[1718392531158,2.6178,141.34,141.29,7.8558]
[1718392531324,5.2353,141.35,141.29,5.2374]
[1718392531527,2.6172,141.37,141.32,7.8542]
[1718392531945,0.17,141.39,141.25,58.2563]
[1718392532145,2.6178,141.34,141.29,7.8558]
[1718392532526,2.6177,141.35,141.3,7.8554]
[1718392533044,5.2346,141.37,141.31,13.0916]
[1718392533242,23.5544,141.38,141.32,7.8542]
[1718392533483,2.6172,141.37,141.32,15.7086]
[1718392533663,7.8509,141.39,141.34,2.6177]
[1718392533974,47.8179,141.4,141.31,2.6183]
[1718392533975,7.8524,141.36,141.31,2.6183]
[1718392534131,2.6176,141.35,141.3,26.1843]
[1718392534334,2.6175,141.36,141.31,7.8549]
[1718392534562,7.8523,141.36,141.31,2.6183]
[1718392535255,2.6175,141.36,141.31,15.7099]
[1718392535457,23.5536,141.38,141.32,23.5625]
[1718392535764,26.1695,141.39,141.34,2.6177]
[1718392536353,2.6172,141.37,141.32,7.8541]
[1718392536661,0.17,141.39,141.3,5.2369]
[1718392536848,0.17,141.39,141.3,15.7107]
[1718392536849,2.6176,141.35,141.3,15.7107]
[1718392537254,5.235,141.36,141.3,13.0924]
[1718392537457,26.1747,141.36,141.31,2.6183]
[1718392537673,0.68,141.39,141.32,7.8544]
[1718392537674,7.8519,141.37,141.32,7.8544]
[1718392537980,2.6173,141.37,141.32,7.8544]
[1718392538259,2.6174,141.36,141.31,26.1824]
[1718392538460,7.8519,141.37,141.32,2.6181]
[1718392539067,7.8519,141.37,141.32,7.8544]
[1718392539269,2.6171,141.38,141.33,7.8537]
[1718392539451,15.7025,141.38,141.33,2.6179]
[1718392539762,7.8513,141.38,141.33,2.6179]
[1718392540259,7.8509,141.39,141.34,2.6177]
[1718392540471,2.6166,141.41,141.36,15.7042]
[1718392540773,264.59545341,141.43,141.34,26.1773]
[1718392540774,2.6168,141.39,141.34,26.1773]
[1718392541068,7.04156626,141.39,141.35,2.6175]
[1718392541242,14.89226626,141.39,141.34,7.8532]
[1718392541447,7.8502,141.4,141.35,7.8527]
[1718392541642,7.04342897,141.39,141.35,2.6176]
[1718392541865,7.04342897,141.39,141.36,5.2347]
[1718392542071,2.6165,141.42,141.37,2.6172]
[1718392542247,2.6165,141.42,141.31,0.17]
[1718392542248,2.6165,141.41,141.31,0.17]
[1718392542448,2.6171,141.38,141.33,2.6178]
[1718392542692,2.6171,141.38,141.33,26.1795]
[1718392543172,26.17,141.39,141.33,23.5617]
[1718392543370,2.617,141.38,141.34,2.6177]
[1718392543584,7.8518,141.37,141.32,7.8542]
[1718392543749,7.8514,141.38,141.33,7.8538]
[1718392543944,15.7025,141.38,141.33,2.6179]
[1718392544144,2.6176,141.36,141.31,10.4732]
[1718392544345,26.1735,141.37,141.32,2.6181]
[1718392544748,26.1735,141.37,141.32,15.7087]
[1718392544749,2.6174,141.37,141.32,15.7087]
[1718392544940,7.8519,141.37,141.32,7.8543]
[1718392545145,26.1712,141.38,141.33,2.6179]
[1718392545371,2.6172,141.37,141.32,23.5628]
[1718392545551,2.6172,141.37,141.33,2.6179]
[1718392545946,26.1712,141.38,141.33,2.6179]
[1718392546381,2.6172,141.37,141.32,26.1808]
[1718392546562,2.6172,141.37,141.32,2.618]
[1718392546768,7.8517,141.37,141.32,7.8542]
[1718392547084,7.853,141.35,141.3,7.8554]